bitfinex/quotes_SOLUSD_20250403
["timestamp","ask_amount","ask_price","bid_price","bid_amount"]
[1743642816666,21.70233894,119.85,119.83,0.063]
[1743642817468,26.2441,119.89,119.83,0.063]
[1743642817469,6.2441,119.89,119.83,0.063]
[1743642817669,21.70233894,119.9,119.83,1.6843]
[1743642817892,47.70233894,119.89,119.83,1.6843]
[1743642818790,21.70233894,119.9,119.83,1.6843]
[1743642818981,1.5736,119.91,119.84,19.07613357]
[1743642819182,1.6637,119.94,119.84,100.97613357]
[1743642819372,1.6637,119.94,119.87,26.0]
[1743642819571,1.6637,119.94,119.88,8.32]
[1743642819972,34.71114773,119.93,119.88,8.32]
[1743642820383,36.37484773,119.94,119.88,8.32]
[1743642820787,34.71114773,119.93,119.88,8.32]
[1743642820995,34.71114773,119.92,119.88,8.32]
[1743642821293,0.42648471,119.93,119.88,8.32]
[1743642821294,35.13763244,119.93,119.88,8.32]
[1743642821788,34.71114773,119.93,119.88,8.32]
[1743642823099,1.6637,119.94,119.88,8.32]
[1743642823286,36.37484773,119.94,119.88,8.32]
[1743642825207,1.6637,119.94,119.88,8.32]
[1743642825996,36.37484773,119.94,119.88,8.32]
[1743642828288,34.71114773,119.93,119.88,8.32]
[1743642829375,34.71114773,119.92,119.88,8.32]
[1743642829695,35.13763244,119.93,119.88,8.32]
[1743642831787,0.42648471,119.93,119.88,8.32]
[1743642832891,6.0371,119.95,119.88,8.32]
[1743642833276,40.74824773,119.95,119.88,8.32]
[1743642833476,34.71114773,119.92,119.85,325.24]
[1743642833672,34.71114773,119.91,119.86,8.3]
[1743642833891,36.33504773,119.91,119.87,8.3]
[1743642834691,44.67494773,119.91,119.87,8.3]
[1743642835394,44.67494773,119.91,119.85,325.24]
[1743642835597,44.67494773,119.91,119.87,8.3]
[1743642835893,26.0,119.91,119.87,8.3]
[1743642836975,0.42648471,119.91,119.87,8.3]
[1743642837176,35.13763244,119.91,119.87,8.3]
[1743642839072,43.05034773,119.92,119.87,8.3]
[1743642839401,43.47573244,119.93,119.87,8.3]
[1743642839692,30.4643334,119.93,119.87,8.3]
[1743642840100,0.14216157,119.93,119.87,8.3]
[1743642840395,36.07384869,119.95,119.87,8.3]
[1743642841573,14.3741,119.95,119.87,8.3]
[1743642841778,0.03,119.95,119.88,37.8399]
[1743642844509,0.03,119.95,119.88,37.9029]
[1743642845585,0.03,119.95,119.92,26.0]
[1743642845894,0.03,119.95,119.93,8.3]
[1743642846609,0.03,119.95,119.93,38.3]
[1743642847487,0.03,119.95,119.93,39.8568]
[1743642849405,0.03,120.0,119.94,19.07613357]
[1743642849608,0.03,120.0,119.97,26.0]
[1743642849825,0.03,120.0,119.98,8.3]
[1743642851489,0.03,120.0,119.98,9.9577]
[1743642852409,0.03,120.0,119.99,25.23383357]
[1743642853314,0.03,120.0,119.99,107.13383357]
[1743642853490,0.03,120.06,119.99,107.13383357]
[1743642854199,0.03,120.06,119.99,137.13383357]
[1743642855596,0.03,120.08,120.06,8.0231]
[1743642855796,0.03,120.12,120.1,26.0]
[1743642856017,0.03,120.12,120.11,18.64964886]
[1743642856403,0.03,120.12,120.1,26.0]
[1743642856726,0.03,120.12,120.09,81.9]
[1743642856909,0.03,120.12,120.08,325.04]
[1743642861126,21.72974869,120.12,120.08,325.04]
[1743642861311,21.72974869,120.12,120.08,333.32]
[1743642861312,21.69974869,120.11,120.08,333.32]
[1743642861512,21.69974869,120.11,120.08,8.28]
[1743642861914,30.02554869,120.11,120.08,8.28]
[1743642862902,21.69974869,120.11,120.08,8.28]
[1743642863619,0.03,120.12,120.08,8.28]
[1743642866533,21.72974869,120.12,120.08,8.28]
[1743642867130,0.03,120.12,120.08,8.343]
[1743642871333,21.72974869,120.12,120.08,8.343]
[1743642871633,0.14216157,120.11,120.08,0.063]
[1743642871811,47.69974869,120.1,120.08,0.063]
[1743642872332,26.0,120.1,120.08,0.063]
[1743642872534,30.4814334,120.12,120.08,0.063]
[1743642874418,0.17216157,120.12,120.08,0.063]
[1743642875432,30.19691026,120.12,120.08,0.063]
[1743642875737,21.69974869,120.11,120.08,8.343]
[1743642876745,30.02574869,120.11,120.08,8.343]
[1743642877429,0.14216157,120.1,120.08,0.063]
[1743642878934,103.94191026,120.09,120.08,0.063]
[1743642879254,142.87588226,120.09,120.08,0.063]
[1743642879410,122.87588226,120.09,120.08,0.063]
[1743642879616,103.94191026,120.09,120.08,0.063]
[1743642879819,21.84191026,120.09,120.08,0.063]
[1743642880428,26.0,120.09,120.08,0.063]
[1743642880838,75.10288226,120.09,120.08,0.063]
[1743642881229,45.07613357,120.09,120.08,0.063]
[1743642881433,75.10288226,120.09,120.08,0.063]
[1743642881616,56.16891026,120.09,120.08,0.063]
[1743642882645,30.16891026,120.09,120.08,0.063]
[1743642882826,56.16891026,120.09,120.08,0.063]
[1743642883643,34.46916157,120.09,120.08,0.063]
[1743642885338,53.40313357,120.09,120.08,0.063]
[1743642885533,34.46916157,120.09,120.08,0.063]
[1743642885720,56.16891026,120.09,120.08,0.063]
[1743642886131,75.10288226,120.09,120.08,0.063]
[1743642886743,53.40313357,120.09,120.08,0.063]
[1743642887242,75.10288226,120.09,120.08,0.063]
[1743642890550,53.40313357,120.09,120.08,0.063]
[1743642890734,75.10288226,120.09,120.08,0.063]
[1743642890937,95.10288226,120.09,120.08,0.063]
[1743642891827,69.10288226,120.09,120.08,0.063]
[1743642892844,34.3312,120.04,119.99,8.28]
[1743642893147,100.89181043,120.08,119.99,8.28]
[1743642893347,8.47056157,120.07,119.99,8.28]
[1743642893551,30.17031026,120.07,119.99,8.28]
[1743642894163,8.47056157,120.07,119.99,8.28]
[1743642894450,30.17031026,120.07,119.99,8.28]
[1743642894947,8.47056157,120.07,119.99,8.28]
[1743642897125,82.1,120.08,120.0,18.64964886]
[1743642898629,82.1,120.08,120.01,8.0079]
[1743642901867,8.46926157,120.09,120.01,8.0079]
[1743642902554,0.14216157,120.06,120.01,8.0079]
[1743642902759,0.14216157,120.06,120.02,8.28]
[1743642903259,82.1,120.07,120.02,8.28]
[1743642904266,90.4285,120.07,120.02,8.28]
[1743642904649,82.1,120.07,120.02,8.28]
[1743642907566,0.14216157,120.08,120.02,8.28]
[1743642907974,0.03,120.1,120.03,18.64964886]
[1743642908163,0.03,120.1,120.05,18.64964886]
[1743642908343,0.03,120.1,120.06,6.2481]
[1743642908543,0.03,120.1,120.07,8.26]
[1743642918782,0.03,120.1,120.08,8.26]
[1743642919177,0.03,120.1,120.07,8.26]
[1743642921257,0.03,120.1,120.08,8.26]
[1743642927163,0.03,120.1,120.06,0.063]
[1743642927371,14.01372078,120.1,120.06,0.063]
[1743642927676,0.14216157,120.08,120.06,0.063]
[1743642930592,0.14216157,120.09,120.06,0.063]
[1743642931177,19.07613357,120.09,120.06,0.063]
[1743642932093,82.1,120.09,120.06,0.063]
[1743642932399,0.03,120.1,120.06,0.063]
[1743642936201,2.08167829,120.09,120.06,0.063]
[1743642937095,0.14216157,120.08,120.06,0.063]
[1743642937300,21.78199014,120.07,120.06,0.063]
[1743642937499,60.71596214,120.07,120.06,0.063]
[1743642937806,0.14216157,120.07,120.06,0.063]
[1743642938718,2.22438229,120.07,120.06,0.063]
[1743642938916,51.12658286,120.07,120.06,0.063]
[1743642940102,73.26641143,120.07,120.06,0.063]
[1743642943230,98.31641143,120.07,120.06,0.063]
[1743642944023,51.12658286,120.07,120.06,0.063]
[1743642944211,20.87403115,120.07,120.06,0.063]
[1743642944416,2.22438229,120.07,120.06,0.063]
[1743642946092,51.12658286,120.07,120.06,0.063]
[1743642952722,72.76641143,120.07,120.06,0.063]
[1743642953524,105.73941143,120.07,120.06,0.063]
[1743642954422,106.23941143,120.07,120.06,0.063]
[1743642955825,26.14216157,120.03,120.02,0.063]
[1743642956023,47.78199014,120.03,120.02,0.063]
[1743642957338,58.19541086,120.03,120.02,0.063]
[1743642958509,56.11319014,120.03,120.02,0.063]
[1743642959931,26.0,120.03,120.02,0.063]
[1743642960513,45.07613357,120.03,120.02,0.063]
[1743642960714,66.71596214,120.03,120.02,0.063]
[1743642961632,26.14216157,120.03,120.02,0.063]
[1743642961928,2.08304553,120.03,120.02,0.063]
[1743642962916,82.1,120.05,120.02,0.063]
[1743642963119,82.1,120.05,120.03,1.5466]
[1743642963324,0.14216157,120.07,120.03,1.5466]
[1743642964242,48.760139,120.07,120.03,1.5466]
[1743642964915,0.14216157,120.05,120.02,8.303]
[1743642965141,21.78199014,120.05,120.02,8.303]
[1743642965347,0.14216157,120.03,120.02,0.063]
[1743642965509,40.71596214,120.03,120.02,0.063]
[1743642965914,49.04716214,120.03,120.02,0.063]
[1743642967042,51.13010587,120.03,120.02,0.063]
[1743642967241,51.13010587,120.03,119.93,0.063]
[1743642967242,26.5937,119.96,119.93,0.063]
[1743642967437,0.14216157,119.93,119.88,30.063]
[1743642967739,60.71596214,119.9,119.88,0.063]
[1743642967944,8.48446157,119.87,119.83,100.75611711]
[1743642968119,135.9,119.89,119.85,76.23656358]
[1743642968322,0.14216157,119.91,119.85,84.47656358]
[1743642969217,0.5,119.89,119.56,0.03]
[1743642969421,26.0,119.9,119.56,0.03]
[1743642969422,20.28432314,119.64,119.56,0.03]
[1743642969618,0.14216157,119.64,119.56,0.03]
[1743642969815,20.0,119.69,119.61,324.9]
[1743642970032,0.14216157,119.7,119.61,334.64]
[1743642970236,0.14216157,119.7,119.61,324.9]
[1743642970429,8.3514,119.74,119.64,9.78]
[1743642970633,0.14216157,119.73,119.64,10.28]
[1743642970832,0.42648471,119.71,119.61,324.9]
[1743642971038,0.14216157,119.69,119.64,9.78]
[1743642971240,21.78199014,119.69,119.64,9.78]
[1743642971538,21.63982857,119.68,119.64,9.78]
[1743642971850,34.86416839,119.69,119.64,9.78]
[1743642972144,43.21936839,119.69,119.64,9.78]
[1743642972342,135.95600904,119.67,119.64,9.78]
[1743642972646,135.95600904,119.67,119.63,0.03]
[1743642972647,170.82017743,119.67,119.63,0.03]
[1743642972946,16.99450113,119.66,119.62,9.76]
[1743642973125,16.99450113,119.66,119.61,303.21927809]
[1743642973320,16.99450113,119.65,119.64,0.03]
[1743642973631,16.99450113,119.65,119.61,245.21253591]
[1743642974233,16.99450113,119.65,119.62,0.42648471]
[1743642974545,16.99450113,119.65,119.61,170.18868547]
[1743642974742,16.99450113,119.65,119.62,18.64964886]
[1743642975350,39.65383597,119.64,119.62,18.64964886]
[1743642975646,36.32063597,119.64,119.62,18.64964886]
[1743642975825,41.1386027,119.63,119.62,18.64964886]
[1743642976026,36.82042205,119.64,119.62,18.64964886]
[1743642976719,16.99450113,119.63,119.62,19.07613357]
[1743642977122,16.99450113,119.63,119.61,170.18868547]
[1743642977738,56.25239903,119.63,119.61,170.18868547]
[1743642978324,56.25239903,119.63,119.62,9.7]
[1743642979131,138.35239903,119.63,119.61,160.42868547]
[1743642979642,82.1,119.62,119.61,44.34743814]
[1743642980351,99.09450113,119.62,119.61,44.34743814]
[1743642980921,82.1,119.62,119.61,44.34743814]
[1743642982331,82.1,119.62,119.59,335.32]
[1743642982530,82.1,119.62,119.59,325.68]
[1743642983051,90.4598,119.62,119.59,325.68]
[1743642983346,82.1,119.62,119.59,325.68]
[1743642983530,82.1,119.61,119.59,325.68]
[1743642984364,82.1,119.6,119.59,325.68]
[1743642984861,43.22446839,119.62,119.59,325.68]
[1743642985232,43.6509531,119.62,119.61,0.03]
[1743642985626,8.78678471,119.62,119.61,0.03]
[1743642986038,135.963,119.63,119.61,0.03]
[1743642986429,135.963,119.63,119.62,9.58]
[1743642986734,165.963,119.63,119.62,9.58]
[1743642987251,135.963,119.63,119.62,9.58]
[1743642987442,0.063,119.63,119.62,9.58]
[1743642990452,0.14216157,119.62,119.61,0.03]
[1743642990644,171.1906531,119.62,119.61,0.03]
[1743642991640,136.32648471,119.62,119.61,0.03]
[1743642992238,8.83028608,119.61,119.59,325.68]
[1743642992760,0.46978608,119.61,119.59,325.68]
[1743642997349,0.46978608,119.61,119.59,325.71]
[1743642997750,82.1,119.6,119.59,325.71]
[1743642998237,8.89328608,119.61,119.59,325.71]
[1743642998443,0.42648471,119.6,119.59,325.71]
[1743642998638,35.2906531,119.6,119.59,325.71]
[1743642998838,0.42648471,119.6,119.59,325.71]
[1743642999064,35.2906531,119.6,119.59,0.03]
[1743642999958,0.42648471,119.6,119.59,0.03]
[1743643000160,0.53278608,119.61,119.59,0.03]
[1743643000957,8.89328608,119.61,119.59,0.03]
[1743643001154,43.75745447,119.61,119.59,0.03]
[1743643001351,0.53278608,119.61,119.59,0.03]
[1743643001864,35.39695447,119.61,119.59,0.03]
[1743643002069,0.42648471,119.6,119.59,0.03]
[1743643002466,43.6518531,119.6,119.59,0.03]
[1743643002977,8.78768471,119.6,119.59,0.03]
[1743643003480,62.30150196,119.6,119.59,0.03]
[1743643005880,92.30150196,119.6,119.59,0.03]
[1743643006558,19.07613357,119.58,119.56,0.03]
[1743643006889,116.96416839,119.57,119.56,0.03]
[1743643007177,34.86416839,119.57,119.56,0.03]
[1743643007474,43.22746839,119.57,119.56,0.03]
[1743643008277,0.86627079,119.56,119.53,0.03]
[1743643008481,35.2906531,119.54,119.53,0.03]
[1743643008971,0.43978608,119.56,119.53,0.03]
[1743643008972,0.58194765,119.56,119.53,0.03]
[1743643009187,0.43978608,119.56,119.53,0.03]
[1743643010577,8.80378608,119.56,119.53,0.03]
[1743643010783,0.43978608,119.56,119.53,0.03]
[1743643012080,0.43978608,119.56,119.55,26.0]
[1743643013556,0.43978608,119.56,119.55,34.3647]
[1743643013981,5.87415609,119.56,119.55,34.3647]
[1743643014177,5.87415609,119.56,119.55,53.01434886]
[1743643014391,82.163,119.57,119.55,53.01434886]
[1743643015467,0.063,119.61,119.56,18.64964886]
[1743643015673,0.063,119.61,119.58,8.3626]
[1743643017467,0.063,119.61,119.59,18.64964886]
[1743643017883,0.063,119.61,119.6,8.3612]
[1743643018684,82.1,119.62,119.6,8.3612]
[1743643018886,0.063,119.63,119.61,326.02]
[1743643019065,0.063,119.63,119.62,9.08]
[1743643020087,0.063,119.63,119.62,17.4398]
[1743643020590,0.063,119.63,119.62,88.90703368]
[1743643020788,34.86416839,119.65,119.62,79.82703368]
[1743643021587,34.86416839,119.64,119.62,79.82703368]
[1743643021900,43.22256839,119.65,119.62,79.82703368]
[1743643022091,0.063,119.63,119.62,79.82703368]
[1743643022780,0.48948471,119.63,119.62,79.82703368]
[1743643023179,0.063,119.63,119.62,79.82703368]
[1743643023382,0.063,119.63,119.62,88.18683368]
[1743643023685,0.063,119.63,119.62,8.3598]
[1743643024281,0.063,119.63,119.62,27.43593357]
[1743643024477,88.3678,119.71,119.62,48.33543357]
[1743643024794,88.3678,119.71,119.64,18.64964886]
[1743643024989,96.7213,119.71,119.64,18.64964886]
[1743643025179,35.00632996,119.7,119.63,9.02]
[1743643025694,35.2906531,119.7,119.63,9.02]
[1743643026193,43.6449531,119.7,119.64,8.3584]
[1743643026699,0.42648471,119.68,119.62,8.3597]
[1743643026874,0.42648471,119.68,119.61,334.3802]
[1743643026875,35.2906531,119.68,119.61,334.3802]
[1743643027077,0.42648471,119.66,119.62,8.96]
[1743643027693,0.42648471,119.68,119.62,8.96]
[1743643027993,84.18855203,119.69,119.63,8.3591]
[1743643028174,2.08855203,119.69,119.63,8.3591]
[1743643028494,34.86416839,119.7,119.63,8.3591]
[1743643028882,0.42648471,119.7,119.63,8.3591]
[1743643029685,82.1,119.71,119.66,26.0]
[1743643029878,1.5373,119.72,119.67,34.94]
[1743643030196,34.86416839,119.72,119.66,8.96]
[1743643030505,35.06932996,119.73,119.66,8.96]
[1743643031002,0.28432314,119.72,119.66,8.96]
[1743643031213,60.86416839,119.71,119.66,8.96]
[1743643031393,0.42648471,119.7,119.66,8.96]
[1743643031707,35.2906531,119.7,119.66,8.96]
[1743643032098,60.86416839,119.71,119.66,8.96]
[1743643032280,0.063,119.73,119.67,18.64964886]
[1743643034101,0.063,119.73,119.68,8.3556]
[1743643041725,0.063,119.73,119.69,18.64964886]
[1743643042024,0.063,119.73,119.72,44.64964886]
[1743643042227,0.063,119.73,119.72,53.44964886]
[1743643042719,0.063,119.73,119.72,57.52972944]
[1743643042909,0.063,119.73,119.72,57.95621415]
[1743643043107,0.063,119.75,119.74,0.28432314]
[1743643043309,1.5476,119.81,119.74,0.28432314]
[1743643043606,9.8942,119.81,119.75,18.64964886]
[1743643044294,44.75836839,119.81,119.74,8.3514]
[1743643044516,44.75836839,119.81,119.76,8.78]
[1743643044818,1.5476,119.81,119.76,8.78]
[1743643045419,1.5476,119.81,119.77,18.64964886]
[1743643045626,82.1,119.83,119.78,8.3486]
[1743643045821,125.30936839,119.83,119.77,8.349]
[1743643045999,0.42648471,119.82,119.76,342.8098]
[1743643046905,90.4452,119.83,119.76,342.8098]
[1743643047094,82.1,119.83,119.78,8.3486]
[1743643047294,0.063,119.85,119.79,18.64964886]
[1743643048302,0.063,119.85,119.82,26.0]
[1743643048501,0.063,119.85,119.83,8.76]
[1743643049225,0.063,119.85,119.83,17.1048]
[1743643049608,0.063,119.85,119.83,8.76]
[1743643050526,0.063,119.85,119.83,8.72]
[1743643052205,0.063,119.85,119.83,17.0647]
[1743643053217,0.063,119.85,119.84,18.64964886]
[1743643053432,0.063,119.85,119.83,17.0647]
[1743643053605,0.063,119.85,119.83,8.72]
[1743643055721,0.063,119.85,119.82,8.3456]
[1743643055905,0.063,119.85,119.83,8.64]
[1743643056730,0.063,119.85,119.82,8.64]
[1743643058108,0.063,119.85,119.83,8.3451]
[1743643059014,0.063,119.85,119.84,18.933972]
[1743643059213,0.063,119.85,119.84,19.07613357]
[1743643059929,1.6452,119.92,119.88,18.64964886]
[1743643060124,1.6452,119.92,119.89,8.6]
[1743643060526,1.6452,119.92,119.89,16.9408]
[1743643061001,1.6452,119.92,119.89,8.6]
[1743643062036,1.6452,119.92,119.89,16.9409]
[1743643062830,36.50936839,119.92,119.79,0.5]
[1743643063128,34.86416839,119.9,119.85,8.58]
[1743643063314,60.86416839,119.89,119.85,8.58]
[1743643064509,8.3416,119.88,119.85,8.58]
[1743643066139,69.20536839,119.89,119.85,8.58]
[1743643066636,34.3412,119.89,119.85,8.58]
[1743643067636,35.14849153,119.9,119.85,8.58]
[1743643067934,116.96416839,119.91,119.85,8.58]
[1743643068318,36.50936839,119.92,119.85,16.9237]
[1743643068529,44.84856839,119.92,119.86,18.64964886]
[1743643068918,34.86416839,119.91,119.85,8.58]
[1743643069936,34.86416839,119.91,119.85,16.9537]
[1743643070123,34.92716839,119.91,119.85,16.9537]
[1743643070620,0.063,119.91,119.86,18.64964886]
[1743643070826,0.063,119.91,119.86,26.99214886]
[1743643071335,0.063,119.91,119.86,18.64964886]
[1743643072228,0.48948471,119.91,119.85,8.61]
[1743643072540,35.3536531,119.91,119.85,16.9536]
[1743643072737,0.063,119.91,119.85,16.9536]
[1743643073139,0.063,119.91,119.86,18.64964886]
[1743643073546,8.4027,119.91,119.86,18.64964886]
[1743643073724,0.063,119.91,119.86,18.64964886]
[1743643074123,0.063,119.91,119.87,0.42648471]
[1743643074322,0.063,119.91,119.9,19.07613357]
[1743643074525,0.063,119.97,119.91,0.42648471]
[1743643074729,0.063,119.97,119.93,18.64964886]
[1743643075042,0.063,119.97,119.93,343.90964886]
[1743643076831,0.063,119.97,119.94,8.3375]
[1743643077018,0.063,119.97,119.95,8.44]
[1743643079332,0.063,120.03,119.99,26.0]
[1743643079527,0.063,120.03,119.96,6.73826157]
[1743643079727,0.063,120.03,119.98,18.64964886]
[1743643079927,8.3942,120.03,119.97,8.48]
[1743643080128,0.063,120.03,119.97,8.48]
[1743643080328,0.063,120.03,119.98,18.64964886]
[1743643080938,0.063,120.03,119.99,8.334]
[1743643081734,0.063,120.03,119.99,29.169]
[1743643082554,0.063,120.03,120.01,26.0]
[1743643082849,0.063,120.03,120.02,8.48]
[1743643083031,0.063,120.03,120.01,38.495859]
[1743643083349,0.063,120.03,120.02,8.46]
[1743643084850,3.67,120.04,120.02,8.46]
[1743643085332,3.67,120.04,120.02,16.7918]
[1743643086973,3.67,120.04,120.03,18.64964886]
[1743643087260,3.67,120.04,120.03,26.98084886]
[1743643088749,0.03,120.08,120.07,0.42648471]
[1743643089051,0.03,120.1,120.09,8.327]
[1743643089254,0.03,120.1,120.09,26.97664886]
[1743643089440,0.03,120.1,120.09,18.64964886]
[1743643090536,0.03,120.1,120.07,42.7881]
[1743643090739,0.03,120.1,120.07,8.46]
[1743643090950,0.03,120.1,120.07,16.7884]
[1743643091353,0.03,120.1,120.07,8.46]
[1743643092749,0.03,120.1,120.06,8.329]
[1743643093055,0.03,120.1,120.08,8.44]
[1743643093555,0.03,120.1,120.08,16.7675]
[1743643093857,0.03,120.1,120.08,8.44]
[1743643095471,0.03,120.1,120.03,0.42648471]
[1743643095677,0.03,120.1,120.04,8.4]
[1743643095678,34.89416839,120.1,120.04,8.4]
[1743643095979,34.89416839,120.1,120.04,18.64964886]
[1743643096267,34.89416839,120.1,120.05,8.4]
[1743643096468,0.03,120.1,120.05,8.4]
[1743643096760,125.32046839,120.1,120.05,8.4]
[1743643096946,36.38516839,120.08,120.01,325.1]
[1743643097147,34.86416839,120.07,120.02,8.4]
[1743643097366,36.38516839,120.08,120.02,8.4]
[1743643097748,36.38516839,120.08,120.02,27.04964886]
[1743643097943,44.71316839,120.08,120.02,35.38124886]
[1743643098143,34.86416839,120.05,120.01,325.1]
[1743643098970,34.86416839,120.06,120.01,325.1]
[1743643099144,117.3906531,120.07,120.01,325.1]
[1743643099546,34.86416839,120.05,120.01,325.1]
[1743643100146,8.3305,120.04,120.01,325.1]
[1743643101368,43.19466839,120.04,120.01,325.1]
[1743643101574,34.86416839,120.03,120.01,325.1]
[1743643101869,43.19466839,120.04,120.01,325.1]
[1743643103670,35.00632996,120.02,120.01,325.1]
[1743643103842,35.00632996,120.02,119.94,6.2408]
[1743643103843,36.9390531,120.02,119.97,8.34]
[1743643104171,34.86416839,120.0,119.95,26.98964886]
[1743643104377,43.19676839,120.01,119.94,324.82]
[1743643104555,34.86416839,119.98,119.94,324.82]
[1743643104746,34.86416839,119.97,119.94,324.82]
[1743643104950,60.86416839,119.96,119.94,324.82]
[1743643105169,26.0,119.96,119.94,324.82]
[1743643105569,36.51256839,119.95,119.94,324.82]
[1743643105773,36.51256839,119.95,119.9,8.34]
[1743643106076,26.0,119.92,119.87,333.2021]
[1743643106258,8.3381,119.93,119.87,324.86]
[1743643106453,43.20226839,119.93,119.87,324.86]
[1743643106872,34.86416839,119.91,119.87,324.86]
[1743643107467,82.52648471,119.92,119.87,324.86]
[1743643107676,34.86416839,119.91,119.87,324.86]
[1743643107956,0.42648471,119.9,119.87,324.86]
[1743643108171,0.42648471,119.89,119.85,0.03]
[1743643108363,8.76758471,119.89,119.85,0.03]
[1743643109364,82.1,119.9,119.85,0.03]
[1743643111057,82.1,119.9,119.86,8.32]
[1743643111359,8.76558471,119.92,119.86,8.32]
[1743643112159,8.76558471,119.92,119.86,16.6628]
[1743643112387,43.6297531,119.92,119.86,8.32]
[1743643112858,43.6297531,119.92,119.85,0.03]
[1743643112859,0.42648471,119.89,119.85,0.03]
[1743643113056,35.2906531,119.89,119.85,0.03]
[1743643113376,34.86416839,119.9,119.85,0.03]
[1743643113573,82.1,119.94,119.89,18.64964886]
[1743643113777,1.6484,119.95,119.9,8.34]
[1743643114180,92.0818,120.0,119.91,27.41563357]
[1743643114486,82.1,119.99,119.91,26.98914886]
[1743643115679,82.1,119.99,119.91,47.83804886]
[1743643115979,0.42648471,119.98,119.91,26.98914886]
[1743643116159,8.3354,119.97,119.91,26.98914886]
[1743643116483,8.3354,119.97,119.91,8.3395]
[1743643116673,8.3354,119.97,119.9,16.68]
[1743643116674,0.42648471,119.96,119.9,16.68]
[1743643116871,35.2906531,119.96,119.9,16.68]
[1743643117782,8.76308471,119.96,119.9,16.68]
[1743643117983,26.0,119.96,119.91,18.64964886]
[1743643118285,82.1,119.99,119.91,18.64964886]
[1743643118489,35.00632996,119.98,119.91,18.64964886]
[1743643118785,35.2906531,119.98,119.9,16.68]
[1743643119105,82.1,119.99,119.91,18.64964886]
[1743643119267,1.6483,120.0,119.95,18.64964886]
[1743643119459,1.542,120.03,119.96,9.04]
[1743643119661,1.542,120.03,119.97,18.64964886]
[1743643119984,1.542,120.03,119.96,9.04]
[1743643119985,35.2906531,120.02,119.96,9.04]
[1743643120159,0.42648471,120.0,119.96,9.04]
[1743643120570,82.1,120.01,119.96,9.04]
[1743643121890,82.1,120.01,119.96,17.3759]
[1743643122488,82.1,120.01,119.96,9.04]
[1743643122489,90.4326,120.01,119.96,9.04]
[1743643122787,125.29676839,120.01,119.96,9.04]
[1743643123386,125.29676839,120.01,119.94,8.3372]
[1743643123587,34.86416839,119.96,119.89,26.99054886]
[1743643123763,36.52136839,119.96,119.89,26.99054886]
[1743643123964,44.85766839,119.96,119.89,26.99054886]
[1743643124190,9.9935,119.96,119.89,26.99054886]
[1743643124507,82.1,119.99,119.9,0.42648471]
[1743643125185,82.1,119.99,119.92,26.0]
[1743643125391,82.1,119.99,119.93,27.60964886]
[1743643125689,1.5683,120.0,119.93,27.60964886]
[1743643125868,1.5683,120.0,119.94,8.3375]
[1743643126768,9.9018,120.0,119.93,35.94764886]
[1743643127185,35.2906531,119.99,119.93,8.96]
[1743643128092,8.3347,119.98,119.93,17.298]
[1743643128311,8.76058471,119.99,119.93,17.298]
[1743643129275,8.76058471,119.99,119.93,17.328]
[1743643130404,9.9018,120.0,119.93,17.328]
[1743643130685,1.5683,120.0,119.93,17.328]
[1743643131266,1.5683,120.0,119.94,18.64964886]